bitfinex/quotes_SOLUSD_20240620
["timestamp","ask_amount","ask_price","bid_price","bid_amount"]
[1718871996987,20.34,137.06,136.98,45.0]
[1718871997177,20.0,137.06,136.98,45.0]
[1718871997801,20.0,137.07,136.98,45.0]
[1718871998178,20.0,137.09,136.98,45.0]
[1718871998573,0.68,137.08,136.98,45.0]
[1718872000977,21.46,137.07,136.98,45.0]
[1718872001180,20.68,137.06,136.98,45.0]
[1718872002204,20.68,137.06,136.93,43.8556]
[1718872002375,20.68,137.06,136.94,20.0]
[1718872003502,20.34,137.06,136.95,66.91]
[1718872003897,20.34,137.06,136.95,45.0]
[1718872004415,0.17,137.03,136.93,21.9456]
[1718872004592,20.68,137.03,136.93,21.9456]
[1718872005404,20.0,137.03,136.93,43.8556]
[1718872005589,5.39753095,137.1,136.94,0.17]
[1718872005590,21.46,137.08,136.94,0.17]
[1718872005894,20.0,137.07,136.94,45.0]
[1718872006103,20.0,137.07,136.94,66.91]
[1718872006478,20.0,137.07,136.94,45.0]
[1718872006806,0.17,137.06,136.94,45.0]
[1718872007018,0.68,137.06,136.94,45.0]
[1718872008381,0.68,137.06,136.95,20.0]
[1718872008702,0.68,137.06,136.96,45.0]
[1718872009293,20.0,137.07,136.96,45.0]
[1718872010304,20.0,137.07,136.96,66.91]
[1718872010688,20.0,137.07,136.96,45.0]
[1718872011085,20.0,137.07,136.96,66.91]
[1718872011592,0.51,137.06,136.96,66.91]
[1718872011802,0.17,137.05,136.96,66.91]
[1718872011984,0.17,137.05,136.96,45.0]
[1718872013096,0.34,137.05,136.96,45.0]
[1718872013306,0.34,137.04,136.96,45.0]
[1718872013605,0.17,137.03,136.96,45.0]
[1718872013783,0.34,137.03,136.96,45.0]
[1718872013985,0.17,137.02,136.96,45.0]
[1718872014303,0.34,137.03,136.96,45.0]
[1718872014304,0.17,137.03,136.96,45.0]
[1718872014527,0.34,137.03,136.96,45.0]
[1718872015796,0.17,137.06,136.96,66.91]
[1718872016004,0.68,137.06,136.96,66.91]
[1718872018207,0.68,137.06,136.96,45.0]
[1718872020513,0.68,137.06,136.96,66.91]
[1718872020715,0.68,137.06,136.96,45.0]
[1718872021204,0.68,137.06,136.96,66.91]
[1718872023300,0.68,137.06,136.97,0.17]
[1718872023605,42.52398372,137.11,136.97,0.51]
[1718872023804,26.32982825,137.11,137.0,0.17]
[1718872023998,20.0,137.1,137.0,87.08]
[1718872024308,21.06398372,137.11,137.0,87.08]
[1718872025705,21.06398372,137.11,137.02,0.17]
[1718872025885,255.9,137.12,137.02,0.17]
[1718872026087,21.46,137.14,137.02,0.17]
[1718872026404,21.05231195,137.16,137.04,21.91]
[1718872026607,21.05231195,137.16,137.05,65.0]
[1718872026805,21.05231195,137.16,137.05,86.91]
[1718872027803,0.68,137.15,137.05,86.91]
[1718872028018,21.05231195,137.16,137.06,0.34]
[1718872028308,47.88867249,137.17,137.06,0.51]
[1718872028513,20.0,137.16,137.06,0.51]
[1718872029291,20.0,137.16,137.07,21.91]
[1718872029493,20.0,137.16,137.09,15.5297]
[1718872029693,34.39207288,137.19,137.09,43.5057]
[1718872029917,20.0,137.18,137.1,45.0]
[1718872030096,21.04467203,137.22,137.1,66.91]
[1718872030302,20.0,137.21,137.1,66.91]
[1718872031018,21.46,137.2,137.1,45.0]
[1718872031320,0.17,137.18,137.1,45.0]
[1718872031500,0.68,137.18,137.1,45.0]
[1718872032601,0.68,137.18,137.05,42.7033]
[1718872032602,21.46,137.17,137.05,42.7033]
[1718872032898,21.46,137.17,137.06,21.91]
[1718872032899,20.17,137.16,137.06,21.91]
[1718872033112,20.0,137.16,137.08,21.91]
[1718872033410,26.41072361,137.22,137.08,21.91]
[1718872033411,41.46,137.21,137.08,21.91]
[1718872033790,41.46,137.21,137.09,45.0]
[1718872034197,0.17,137.2,137.09,45.0]
[1718872034513,0.68,137.2,137.09,45.0]
[1718872036310,0.68,137.2,137.09,66.91]
[1718872036815,0.68,137.2,137.09,45.0]
[1718872037042,0.68,137.2,137.08,45.0]
[1718872037321,0.68,137.2,137.08,66.91]
[1718872043326,0.68,137.2,137.08,45.0]
[1718872043508,7.16,137.16,137.1,7.16]
[1718872043704,0.34,137.17,137.11,45.0]
[1718872043905,0.17,137.16,137.11,45.0]
[1718872044104,7.16,137.16,137.11,52.16]
[1718872044998,20.0,137.19,137.13,7.16]
[1718872045209,7.16,137.19,137.14,45.0]
[1718872045430,7.16,137.19,137.14,52.16]
[1718872045811,20.0,137.21,137.14,52.16]
[1718872046030,7.16,137.19,137.14,45.0]
[1718872046321,20.0,137.21,137.14,45.0]
[1718872046508,7.16,137.19,137.14,45.0]
[1718872047434,255.9,137.23,137.14,45.0]
[1718872047805,255.9,137.23,137.14,66.91]
[1718872048329,37.08074733,137.27,137.16,21.91]
[1718872048518,37.08074733,137.27,137.17,45.0]
[1718872049427,0.17,137.25,137.17,45.0]
[1718872049607,0.51,137.25,137.17,45.0]
[1718872049807,0.17,137.24,137.17,45.0]
[1718872050024,0.34,137.24,137.17,45.0]
[1718872050701,0.34,137.24,137.16,45.0]
[1718872051127,20.0,137.26,137.17,21.91]
[1718872051329,20.0,137.28,137.18,45.0]
[1718872051825,20.0,137.28,137.17,66.91]
[1718872052063,25.38665047,137.28,137.17,66.91]
[1718872052417,0.34,137.27,137.17,45.0]
[1718872052616,0.34,137.26,137.17,45.0]
[1718872052822,0.17,137.25,137.17,45.0]
[1718872054823,0.34,137.25,137.17,45.0]
[1718872055002,0.34,137.24,137.16,45.0]
[1718872055199,0.34,137.24,137.16,66.92]
[1718872055428,0.17,137.24,137.16,66.92]
[1718872056137,23.39665047,137.28,137.16,66.92]
[1718872056347,0.17,137.27,137.16,66.92]
[1718872057433,0.17,137.27,137.17,0.34]
[1718872057617,23.39665047,137.28,137.18,21.92]
[1718872057818,23.39665047,137.28,137.19,45.0]
[1718872058236,0.34,137.27,137.19,45.0]
[1718872059023,0.17,137.26,137.19,45.0]
[1718872059221,0.17,137.27,137.19,45.0]
[1718872059564,18.18,137.28,137.19,45.0]
[1718872059565,20.0,137.29,137.2,63.4478]
[1718872059729,20.0,137.29,137.21,45.0]
[1718872060127,21.47,137.32,137.21,45.0]
[1718872061243,26.94106654,137.32,137.21,45.0]
[1718872061429,20.68,137.31,137.21,45.0]
[1718872061835,20.0,137.31,137.21,45.0]
[1718872062150,20.0,137.31,137.21,66.92]
[1718872062352,20.0,137.31,137.22,0.17]
[1718872064134,20.0,137.31,137.23,37.1793]
[1718872064332,20.0,137.32,137.24,45.0]
[1718872065263,255.9,137.33,137.25,6.4584]
[1718872067540,0.51,137.34,137.25,6.4584]
[1718872067741,0.17,137.33,137.25,6.4584]
[1718872067953,20.0,137.34,137.26,0.17]
[1718872068261,21.47,137.38,137.26,42.09]
[1718872068457,20.0,137.37,137.26,42.09]
[1718872068633,20.0,137.38,137.26,42.09]
[1718872069029,0.51,137.37,137.27,15.2421]
[1718872069253,0.34,137.36,137.27,15.2421]
[1718872069442,0.51,137.35,137.27,15.2421]
[1718872070838,0.17,137.34,137.27,15.2421]
[1718872071152,0.34,137.34,137.25,6.4584]
[1718872071463,0.17,137.31,137.23,15.7894]
[1718872071645,20.51,137.31,137.23,15.7894]
[1718872071956,0.17,137.3,137.23,15.7894]
[1718872072255,0.51,137.3,137.23,15.7894]
[1718872072460,0.17,137.29,137.23,15.7894]
[1718872072642,0.51,137.29,137.23,15.7894]
[1718872072843,0.17,137.28,137.23,15.7894]
[1718872073540,7.15,137.26,137.23,15.7894]
[1718872075137,7.15,137.25,137.21,6.105]
[1718872075333,0.17,137.28,137.21,6.105]
[1718872075540,21.63,137.28,137.21,6.105]
[1718872075761,20.51,137.27,137.21,6.105]
[1718872075944,0.34,137.26,137.21,6.105]
[1718872076139,0.17,137.25,137.21,6.105]
[1718872081139,20.17,137.27,137.21,6.105]
[1718872081338,20.0,137.27,137.21,6.105]
[1718872081547,20.51,137.28,137.21,6.105]
[1718872081753,0.17,137.27,137.21,6.105]
[1718872085253,0.17,137.27,137.18,6.1426]
[1718872085847,0.17,137.26,137.18,6.1426]
[1718872086148,0.34,137.26,137.18,6.1426]
[1718872086348,0.34,137.25,137.18,6.1426]
[1718872086549,0.17,137.24,137.18,6.1426]
[1718872088470,0.34,137.25,137.18,6.1426]
[1718872088854,0.17,137.27,137.19,15.1439]
[1718872089051,0.34,137.27,137.19,15.1439]
[1718872090068,0.34,137.26,137.19,15.1439]
[1718872090568,0.17,137.25,137.19,15.1439]
[1718872090766,0.34,137.25,137.19,15.1439]
[1718872090971,0.34,137.24,137.19,15.1439]
[1718872091269,0.17,137.24,137.19,15.1439]
[1718872091650,0.17,137.25,137.19,15.1439]
[1718872091847,0.34,137.25,137.19,15.1439]
[1718872093681,0.17,137.24,137.19,15.1439]
[1718872094265,0.34,137.25,137.19,15.1439]
[1718872097461,7.15,137.23,137.19,15.1439]
[1718872099182,7.15,137.24,137.19,15.1439]
[1718872099788,7.15,137.24,137.19,22.2939]
[1718872099988,7.15,137.25,137.2,7.15]
[1718872103280,0.51,137.26,137.19,15.1439]
[1718872103483,7.15,137.23,137.19,15.1439]
[1718872105289,7.15,137.24,137.19,15.1439]
[1718872108685,7.15,137.23,137.19,15.1439]
[1718872110895,7.15,137.22,137.19,15.1439]
[1718872111589,7.15,137.2,137.15,15.1857]
[1718872111794,7.15,137.18,137.15,15.1857]
[1718872112109,7.32,137.17,137.15,15.1857]
[1718872112299,7.32,137.17,137.14,6.1109]
[1718872112300,7.15,137.16,137.14,6.1109]
[1718872112601,7.15,137.15,137.14,6.1109]
[1718872114605,7.32,137.15,137.14,6.1109]
[1718872114971,7.15,137.15,137.14,6.1109]
[1718872115180,0.17,137.14,137.12,15.6261]
[1718872115496,7.15,137.13,137.12,15.6261]
[1718872116204,7.49,137.13,137.09,16.2442]
[1718872116384,7.32,137.13,137.09,16.2442]
[1718872116576,7.49,137.12,137.09,16.2442]
[1718872116778,7.15,137.11,137.09,16.2442]
[1718872117685,0.51,137.14,137.09,16.2442]
[1718872117881,7.32,137.13,137.09,16.2442]
[1718872118281,7.15,137.12,137.09,16.2442]
[1718872119486,7.15,137.12,137.09,13.7442]
[1718872119684,7.15,137.11,137.09,13.7442]
[1718872120493,7.15,137.11,137.08,6.4198]
[1718872120696,7.15,137.09,137.05,6.4578]
[1718872121100,7.49,137.1,137.05,6.4578]
[1718872122296,7.15,137.08,137.05,6.4578]
[1718872122809,7.15,137.09,137.05,6.4578]
[1718872124207,0.17,137.11,137.05,13.6078]
[1718872124388,0.17,137.12,137.05,6.4578]
[1718872124587,7.32,137.12,137.06,7.15]
[1718872124796,20.0,137.11,137.06,7.15]
[1718872125109,27.15,137.11,137.05,13.6078]
[1718872125405,7.15,137.1,137.05,13.6078]
[1718872125713,7.32,137.1,137.05,6.4578]
[1718872125892,0.17,137.1,137.05,6.4578]
[1718872126200,7.15,137.08,137.05,6.4578]
[1718872126593,7.15,137.09,137.05,6.4578]
[1718872127011,7.15,137.1,137.05,6.4578]
[1718872127184,7.15,137.11,137.06,7.15]
[1718872127590,20.0,137.12,137.06,7.15]
[1718872127790,7.15,137.11,137.06,7.15]
[1718872128192,7.15,137.11,137.05,13.6078]
[1718872128510,7.15,137.11,137.06,7.15]
[1718872128917,7.15,137.11,137.05,6.4578]
[1718872129106,7.15,137.11,137.06,7.15]
[1718872129410,7.15,137.11,137.05,13.6078]
[1718872129818,7.15,137.11,137.05,6.4578]
[1718872130028,7.15,137.11,137.05,13.6078]
[1718872133496,0.34,137.13,137.07,7.15]
[1718872133810,7.49,137.13,137.07,7.15]
[1718872134690,7.15,137.12,137.07,7.15]
[1718872135093,7.15,137.12,137.06,7.15]
[1718872135308,0.34,137.13,137.06,7.15]
[1718872135309,7.15,137.11,137.06,7.15]
[1718872135513,7.15,137.11,137.05,13.6078]
[1718872135695,7.15,137.1,137.05,6.4578]
[1718872136221,7.15,137.1,137.05,13.6078]
[1718872136714,0.34,137.13,137.05,13.6078]
[1718872136920,7.15,137.1,137.05,13.6078]
[1718872138388,7.15,137.11,137.06,7.15]
[1718872139417,7.15,137.11,137.05,6.4578]
[1718872139616,7.15,137.1,137.05,6.4578]
[1718872140197,0.17,137.12,137.05,13.6078]
[1718872140517,7.15,137.11,137.05,13.6078]
[1718872141622,0.34,137.1,137.05,13.6078]
[1718872141913,7.15,137.1,137.05,13.6078]
[1718872142293,7.15,137.11,137.05,13.6078]
[1718872142494,20.0,137.15,137.08,7.15]
[1718872142713,7.15,137.14,137.08,7.15]
[1718872143231,20.0,137.15,137.08,7.15]
[1718872143525,7.15,137.13,137.08,7.15]
[1718872143702,7.15,137.13,137.07,7.15]
[1718872144004,7.15,137.13,137.08,7.15]
[1718872144190,7.15,137.13,137.05,28.3778]
[1718872144391,7.15,137.13,137.07,7.15]
[1718872144921,20.0,137.15,137.09,7.15]
[1718872145092,20.0,137.17,137.1,7.15]
[1718872145294,7.15,137.15,137.06,45.3377]
[1718872145502,7.15,137.14,137.09,7.15]
[1718872146313,20.0,137.17,137.1,7.15]
[1718872146617,20.0,137.17,137.1,13.2804]
[1718872146801,7.15,137.16,137.1,13.2804]
[1718872147012,20.0,137.17,137.1,13.2804]
[1718872147216,7.15,137.16,137.1,13.2804]
[1718872147419,20.0,137.17,137.1,13.2804]
[1718872147727,7.15,137.15,137.1,13.2804]
[1718872149205,7.15,137.15,137.1,6.1304]
[1718872150127,7.15,137.15,137.1,13.2804]
[1718872151724,0.17,137.16,137.1,6.1304]
[1718872151923,0.68,137.16,137.07,6.1535]
[1718872152111,7.15,137.13,137.07,13.3035]
[1718872153631,7.15,137.13,137.07,6.1535]
[1718872153798,7.49,137.12,137.07,6.1535]
[1718872153994,7.15,137.11,137.07,6.1535]
[1718872157202,7.49,137.12,137.07,13.3035]
[1718872157715,20.0,137.17,137.08,7.15]
[1718872157904,20.0,137.17,137.11,7.15]
[1718872158304,7.15,137.16,137.11,7.15]
[1718872158728,20.0,137.17,137.11,7.15]
[1718872158900,7.15,137.17,137.12,13.3035]
[1718872159531,7.15,137.17,137.12,6.1535]
[1718872160925,7.15,137.16,137.12,6.1535]
[1718872162213,7.15,137.16,137.1,7.15]
[1718872162214,0.17,137.17,137.08,22.5626]
[1718872162417,7.15,137.14,137.08,29.7126]
[1718872162723,7.15,137.13,137.08,22.5626]
[1718872163633,0.68,137.17,137.08,22.5626]
[1718872163634,7.15,137.14,137.08,22.5626]
[1718872163836,7.15,137.14,137.08,29.7126]
[1718872164516,7.15,137.14,137.09,7.15]
[1718872165730,7.15,137.1,137.05,22.5344]
[1718872165914,7.15,137.08,137.05,22.5344]
[1718872169428,0.17,137.11,137.05,22.5344]
[1718872172036,0.34,137.11,137.05,22.5344]
[1718872172236,0.34,137.1,137.05,22.5344]
[1718872178831,20.17,137.11,137.05,22.5344]
[1718872179026,0.17,137.15,137.05,22.5344]
[1718872179227,22.5748,137.16,137.05,22.5344]
[1718872180648,21.51,137.14,137.05,22.5344]
[1718872180822,20.0,137.13,137.05,22.5344]
[1718872181450,0.34,137.12,137.05,22.5344]
[1718872181752,0.34,137.11,137.05,22.5344]
[1718872182053,0.17,137.1,137.05,22.5344]
[1718872183148,20.0,137.13,137.05,22.5344]
[1718872183449,41.51,137.15,137.05,22.5344]
[1718872184451,0.34,137.14,137.05,22.5344]
[1718872184639,0.34,137.13,137.05,22.5344]
[1718872184843,0.34,137.12,137.05,22.5344]
[1718872185051,0.34,137.11,137.05,22.5344]
[1718872185453,0.34,137.1,137.05,22.5344]
[1718872189536,7.17,137.07,137.05,22.5344]
[1718872190455,7.17,137.06,137.05,22.5344]
[1718872191859,7.17,137.06,137.02,22.3812]
[1718872192051,7.17,137.05,137.02,22.3812]
[1718872193666,0.17,137.08,137.02,22.3812]
[1718872193840,7.17,137.05,137.02,22.3812]
[1718872195567,7.17,137.04,137.02,22.3812]
[1718872196234,0.17,137.06,137.02,22.3812]
[1718872196443,0.17,137.09,137.02,22.3812]
[1718872196659,7.17,137.06,137.02,22.3812]
[1718872197869,7.17,137.05,137.02,22.3812]
[1718872198362,7.17,137.03,136.98,16.0047]
[1718872198570,20.0,137.04,136.98,16.0047]
[1718872198571,7.17,137.01,136.98,16.0047]
[1718872200269,0.17,137.09,136.99,7.17]
[1718872200570,7.17,137.06,137.02,15.9435]
[1718872200742,7.17,137.04,137.02,15.9435]
[1718872201452,7.17,137.03,137.02,15.9435]
[1718872202189,0.17,137.1,137.02,15.9435]
[1718872202377,7.17,137.04,137.02,15.9435]
[1718872203049,7.17,137.05,137.02,15.9435]
[1718872203575,20.34,137.1,137.02,15.9435]
[1718872203868,41.86,137.1,137.02,15.9435]
[1718872204368,0.34,137.09,137.02,15.9435]
[1718872204572,0.34,137.08,137.02,15.9435]
[1718872204756,0.34,137.07,137.02,15.9435]
[1718872204944,0.34,137.09,137.02,15.9435]
[1718872204945,0.17,137.06,137.02,15.9435]
[1718872205145,41.52,137.1,137.03,6.3513]
[1718872205341,20.0,137.1,137.03,6.3513]
[1718872205643,261.27678986,137.11,137.03,6.3513]
[1718872206681,0.51,137.1,137.03,6.3513]
[1718872206971,20.51,137.1,137.03,6.3513]
[1718872207468,0.17,137.09,137.03,6.3513]
[1718872210555,0.17,137.09,137.0,6.03]
[1718872210759,44.6048,137.1,137.0,6.03]
[1718872210760,0.17,137.06,137.0,6.03]
[1718872210963,20.68,137.06,137.0,6.03]
[1718872212144,22.2,137.06,137.0,6.03]
[1718872212371,0.17,137.04,137.0,6.03]
[1718872212575,0.51,137.04,137.0,6.03]
[1718872212748,20.0,137.05,137.0,6.03]
[1718872212948,20.0,137.06,137.0,6.03]
[1718872213263,21.52,137.09,137.0,6.03]
[1718872213459,20.0,137.08,137.0,6.03]
[1718872213972,0.34,137.07,137.0,6.03]
[1718872214164,0.34,137.06,137.0,6.03]
[1718872214361,0.17,137.05,137.0,6.03]
[1718872214765,0.34,137.05,137.0,6.03]
[1718872214968,0.34,137.04,137.0,6.03]
[1718872215568,0.17,137.03,137.0,6.03]
[1718872215775,0.34,137.03,137.0,6.03]
[1718872216075,0.51,137.02,137.0,6.03]
[1718872216280,0.17,137.02,137.0,6.03]
[1718872216574,0.17,137.03,137.0,6.03]
[1718872216872,0.51,137.03,137.0,6.03]
[1718872217054,0.34,137.03,137.0,6.03]
[1718872217256,0.17,137.03,137.0,6.03]
[1718872217455,0.17,137.03,136.98,15.3868]
[1718872217678,0.34,137.03,136.98,15.3868]
[1718872217975,0.34,137.02,136.98,15.3868]
[1718872219450,0.34,137.01,136.98,15.3868]
[1718872219688,0.34,137.0,136.98,15.3868]
[1718872219978,0.17,136.99,136.98,15.3868]
[1718872220273,0.34,137.0,136.98,15.3868]
[1718872221273,0.17,137.01,136.98,15.3868]
[1718872221488,20.0,137.03,136.98,15.3868]
[1718872221656,5.38796272,137.07,136.99,6.2626]
[1718872221856,21.52,137.09,136.99,6.2626]
[1718872222155,24.0948,137.1,136.99,6.2626]
[1718872222356,29.55106937,137.1,136.99,6.2626]
[1718872222671,26.97626937,137.1,136.99,6.2626]
[1718872222878,26.97626937,137.1,137.0,16.4859]
[1718872223879,0.17,137.09,137.0,16.4859]
[1718872224174,22.2,137.09,137.0,16.4859]
[1718872224358,0.17,137.07,137.0,16.4859]
[1718872224557,0.68,137.07,137.0,16.4859]
[1718872225565,20.68,137.07,137.0,16.4859]
[1718872230570,0.51,137.07,137.0,16.4859]
[1718872230775,0.51,137.07,137.01,6.6287]
[1718872231388,5.45626937,137.1,137.02,16.0388]
[1718872231586,21.52,137.11,137.02,16.0388]
[1718872232573,22.06888859,137.15,137.05,22.6675]
[1718872232890,13.16370567,137.15,137.07,22.6675]
[1718872233191,636.9,137.2,137.09,22.6675]
[1718872233359,644.52138625,137.2,137.09,22.6675]
[1718872233563,636.9,137.2,137.09,22.6675]
[1718872233971,642.56275092,137.2,137.09,22.6675]
[1718872234677,21.52,137.18,137.09,22.6675]
[1718872235267,20.0,137.17,137.09,22.6675]
[1718872235569,20.0,137.19,137.09,22.6675]
[1718872236588,41.52,137.19,137.09,22.6675]
[1718872236987,0.34,137.18,137.09,22.6675]
[1718872237287,0.68,137.18,137.09,22.6675]
[1718872237492,45.68,137.18,137.09,22.6675]
[1718872237695,0.17,137.16,137.09,22.6675]
[1718872237990,0.68,137.16,137.09,22.6675]
[1718872238687,20.0,137.19,137.1,21.0852]
[1718872238888,20.0,137.2,137.13,6.0544]
[1718872239098,51.56307604,137.21,137.14,15.0308]
[1718872239468,21.52,137.25,137.14,15.0308]
[1718872240187,5.6658084,137.25,137.14,15.0308]
[1718872240377,21.52,137.25,137.14,15.0308]
[1718872240778,0.68,137.24,137.14,15.0308]
[1718872241177,20.68,137.24,137.14,15.0308]
[1718872241772,20.0,137.24,137.16,16.4173]
[1718872241972,20.0,137.25,137.16,16.4173]
[1718872243365,0.51,137.24,137.16,16.4173]
[1718872244899,0.17,137.24,137.16,16.4173]
[1718872245079,20.0,137.25,137.18,15.1549]
[1718872246074,0.68,137.24,137.18,15.1549]
[1718872246980,0.34,137.24,137.18,15.1549]
[1718872247183,0.51,137.25,137.18,15.1549]
[1718872247489,47.88167986,137.29,137.19,6.5206]
[1718872247794,20.0,137.28,137.19,6.5206]
[1718872248574,0.34,137.27,137.19,6.5206]
[1718872248799,0.17,137.26,137.19,6.5206]
[1718872249199,0.34,137.26,137.19,6.5206]
[1718872249369,0.34,137.25,137.19,6.5206]
[1718872256598,20.0,137.28,137.2,16.5159]
[1718872256904,0.51,137.27,137.2,16.5159]
[1718872258509,0.17,137.26,137.2,16.5159]
[1718872261640,41.69,137.26,137.2,14.4542161]
[1718872261787,0.17,137.24,137.2,14.4542161]
[1718872262685,0.51,137.25,137.2,14.4542161]
[1718872263196,0.34,137.25,137.2,14.4542161]
[1718872263390,40.97346443,137.29,137.2,14.4542161]
[1718872263592,40.97346443,137.29,137.21,6.4955]
[1718872264616,40.97346443,137.29,137.23,6.4955]
[1718872264924,21.52,137.34,137.24,16.273]
[1718872266097,29.13661249,137.35,137.24,16.273]
[1718872267213,21.52,137.35,137.25,26.1667]
[1718872268123,21.52,137.35,137.25,6.1667]
[1718872268499,21.52,137.35,137.26,15.0416]
[1718872269206,0.68,137.34,137.26,15.0416]
[1718872269525,21.52,137.35,137.26,15.0416]
[1718872270725,0.17,137.34,137.26,15.0416]
[1718872271026,0.68,137.34,137.26,15.0416]
[1718872273637,5.41716271,137.36,137.26,15.0416]
[1718872273845,21.52,137.36,137.26,15.0416]
[1718872274943,0.17,137.34,137.26,15.0416]
[1718872275826,71.97805965,137.38,137.28,15.7372]
[1718872276032,71.97805965,137.38,137.29,6.3903]
[1718872276033,43.33902726,137.38,137.29,6.3903]
[1718872277276,0.51,137.37,137.29,6.3903]
[1718872277427,0.34,137.36,137.29,6.3903]
[1718872277629,0.51,137.35,137.29,6.3903]
[1718872277839,0.17,137.34,137.29,6.3903]
[1718872278047,0.34,137.34,137.29,6.3903]
[1718872278226,0.17,137.34,137.29,6.3903]
[1718872278422,0.17,137.35,137.29,6.3903]
[1718872279941,0.34,137.35,137.29,6.3903]
[1718872280176,0.17,137.33,137.29,6.3903]
[1718872280325,0.34,137.33,137.29,6.3903]
[1718872280642,0.34,137.32,137.29,6.3903]
[1718872282044,7.61320726,137.38,137.32,15.768]
[1718872282244,56.5932937,137.4,137.32,15.768]
[1718872282452,35.57156343,137.4,137.32,15.768]
[1718872282749,35.57156343,137.4,137.33,6.1528]
[1718872283140,5.64646838,137.42,137.33,6.1528]
[1718872283354,28.63227037,137.45,137.33,6.1528]
[1718872283542,21.52,137.42,137.33,6.1528]
[1718872284052,0.34,137.41,137.33,6.1528]
[1718872284837,0.34,137.4,137.33,6.1528]
[1718872285034,0.34,137.39,137.33,6.1528]
[1718872285330,0.17,137.38,137.33,6.1528]
[1718872285529,0.34,137.38,137.33,6.1528]
[1718872285842,0.17,137.36,137.33,6.1528]
[1718872286045,0.34,137.36,137.33,6.1528]
[1718872286242,0.34,137.35,137.33,6.1528]
[1718872286952,0.34,137.34,137.33,6.1528]
[1718872287154,0.34,137.35,137.33,6.1528]
[1718872287727,21.52,137.39,137.33,6.1528]
[1718872287928,21.52,137.41,137.33,6.1528]
[1718872289455,0.34,137.4,137.33,6.1528]
[1718872289642,0.34,137.39,137.33,6.1528]
[1718872289831,0.34,137.38,137.33,6.1528]
[1718872290034,0.34,137.37,137.33,6.1528]
[1718872290633,0.17,137.36,137.33,6.1528]
[1718872290838,0.34,137.36,137.33,6.1528]
[1718872291151,21.69,137.34,137.29,6.4035]
[1718872291454,21.52,137.31,137.18,6.4035]
[1718872291658,0.68,137.3,137.2,6.4035]
[1718872291857,0.68,137.3,137.21,20.0]